Cogmind - Beta 11.1 @@@ ROGUE MODE // 2022.06.24 @ 15:33:46 Player: Demise Result: Destroyed by G-34 Mercenary with Small Laser Performance ------------- Evolutions (0) 0 Regions Visited (1) 200 Robots Destroyed (21) 105 Value Destroyed (394) 394 Prototype IDs (0) 0 Alien Tech Used (0) 0 Bonus (0) 0 TOTAL SCORE: 699 Bonus ------- None Cogmind --------- Core Integrity 0/250 Matter 300/300 Energy 160/160 System Corruption 0% Temperature Cool (6) Movement Rolling (140) Ox4 Location -10/Materials Parts ------- > --- POWER (1) -------- Light Nuclear Core > --- PROPULSION (2) --- Wheel Wheel > --- UTILITY (2) ------ Huge Storage Unit Targeting Computer > --- WEAPON (2) ------- Light Assault Rifle Light Assault Rifle > --- INVENTORY (25) --- Ion Engine Seismic Detector Hacking Suite EM Pulse Gun EM Pulse Gun Small Laser Light Assault Rifle Grenade Launcher Peak State ------------ > --- POWER ------------ Light Nuclear Core > --- PROPULSION ------- Wheel Wheel > --- UTILITY ---------- Small Storage Unit Huge Storage Unit > --- WEAPON ----------- Assault Rifle Light Assault Rifle > --- INVENTORY -------- Ion Engine Wheel Seismic Detector EM Pulse Gun EM Pulse Gun Small Laser Light Assault Rifle Light Assault Rifle Light Assault Rifle Grenade Launcher [Rating: 10] Favorites ----------- Power Light Nuclear Core Engine Ion Engine Power Core Light Nuclear Core Propulsion Wheel Wheel Wheel Utility Huge Storage Unit Device Seismic Detector Storage Huge Storage Unit Processor Targeting Computer Weapon Light Assault Rifle Ballistic Gun Light Assault Rifle Launcher Grenade Launcher Build | -11 -10 ------- Run | Scr Mat Slots Evolved . | . . Power . | . . Propulsion . | . . Utility . | . . Weapon . | . . Parts Attached 23 | 7 16 Power 4 | 1 3 Engine 2 | 1 1 Core 2 | . 2 Reactor . | . . Propulsion 8 | 2 6 Treads . | . . Leg . | . . Wheel 8 | 2 6 Hover . | . . Flight . | . . Utility 5 | 2 3 Device 2 | 1 1 Storage 2 | 1 1 Processor 1 | . 1 Hackware . | . . Protection . | . . Artifact . | . . Weapon 6 | 2 4 Energy Gun . | . . Energy Cannon . | . . Ballistic Gun 5 | 2 3 Ballistic Cannon . | . . Launcher 1 | . 1 Special Weapon . | . . Impact Weapon . | . . Slashing Weapon . | . . Piercing Weapon . | . . Special Melee Weapon . | . . Unidentified Prototypes . | . . Parts Lost 7 | . 7 Power 1 | . 1 Propulsion 4 | . 4 Utility . | . . Weapon 2 | . 2 Highest Loss Streak 3 | . 3 To Critical Strikes . | . . Average Slot Usage (%) 93 | . 93 Engine 3 | . 3 Core 10 | . 10 Wheel 26 | . 26 Device 2 | . 2 Storage 14 | . 14 Processor 8 | . 8 Ballistic Gun 26 | . 26 Naked Turns . | . . Heaviest Build 93 | 14 93 Greatest Support 20 | 20 20 Greatest Overweight (x) 8 | . 8 Average Overweight (x) 2 | . 2 Largest Inventory Capacity 25 | 8 25 Average Capacity 18 | 5 19 Most Carried 12 | 5 12 Average Carried 8 | 4 8 Final Capacity 25 | 8 25 Final Carried 8 | 3 8 Class Distribution -------------------- 93% | Mutant 6% | Scavenger-Mutant Dominant Class ---------------- Mutant | -10/Materials Resources | -11 -10 ----------- Run | Scr Mat Matter Collected 631 | 311 320 Remotely . | . . Salvage Created 690 | 175 515 Parts 45 | 13 32 Haulers Intercepted 2 | . 2 Recyclers Shooed 1 | 1 . Parts Field Recycled . | . . Retrieved Matter . | . . Parts Self-Destructed . | . . Prevented . | . . Kills | -11 -10 ------- Run | Scr Mat Combat Hostiles Destroyed 11 | . 11 Guns 9 | . 9 AOE 2 | . 2 Classes Destroyed 7 | 2 5 Builder 1 | . 1 Tunneler 5 | 5 . Hauler 2 | . 2 Recycler 1 | 1 . Operator 1 | . 1 Swarmer 3 | . 3 Grunt 8 | . 8 Best Kill Streak 5 | 5 3 Combat Bots Only 3 | . 3 Max Kills in Single Turn 2 | 1 2 Gunslinging . | . . Exploded 2 | . 2 Melee . | . . Uniques/NPCs Destroyed . | . . Combat | -11 -10 -------- Run | Scr Mat Damage Taken 712 | . 712 Core 255 | . 255 Absorbed by Shields . | . . Core Remaining (%) 100 | 100 . Volleys Fired 90 | 12 78 Largest 2 | 2 2 Hottest 40 | 40 40 Shots Fired 141 | 24 117 Gun 140 | 24 116 Cannon . | . . Launcher 1 | . 1 Special . | . . Kinetic 140 | 24 116 Thermal . | . . Explosive 1 | . 1 Electromagnetic . | . . Robot Hit Streak 11 | 8 11 Robot Miss Streak 4 | 2 4 Penetration Max . | . . Secondary Targets . | . . Shots Hit Robots 98 | 15 83 Core Hits 42 | 8 34 Critical Kills 1 | . 1 Critical Parts Destroyed . | . . Critical Strikes 1 | . 1 Destroy 1 | . 1 Melee Attacks . | . . Impact . | . . Slashing . | . . Piercing . | . . Sneak Attacks . | . . Combat Hostiles . | . . Follow-up Attacks . | . . Damage Inflicted 1029 | 163 866 Guns 906 | 163 743 Cannons . | . . Explosions 120 | . 120 Melee . | . . Ramming 3 | . 3 Kinetic 906 | 163 743 Thermal . | . . Explosive 120 | . 120 Electromagnetic . | . . Impact . | . . Slashing . | . . Piercing . | . . Highest Corruption . | . . Average Corruption . | . . Corruption Purged . | . . Corruption Blocked . | . . Overload Shots . | . . Overflow Damage 23 | . 23 Projectiles . | . . Explosions 23 | . 23 Melee . | . . Knockbacks . | . . Impact . | . . Kinetic . | . . Secondary . | . . Self-Inflicted Damage 1 | . 1 Shots . | . . Rammed 1 | . 1 Targets Rammed 1 | . 1 Kicked . | . . Crushed . | . . Highest Temperature 27 | . 27 Average Temperature 6 | . 6 Received Heat Transfer 429 | . 429 Siege Activations . | . . Robots Corrupted . | . . Combat Hostiles . | . . Parts Fried . | . . Impact Corruptions . | . . Robots Melted . | . . Combat Hostiles . | . . Parts Melted . | . . Heat Transferred . | . . Parts Sabotaged . | . . Parts Stolen . | . . Parts Stripped . | . . Power Chain Reactions . | . . Missiles Intercepted . | . . Alert | -11 -10 ------- Run | Scr Mat Peak Influence 373 | 30 373 Initial 19 | . 19 Average 200 | 13 217 Maximum Alert Level 1 | . 1 Low Security (%) 55 | 100 51 Level 1 44 | . 48 Level 2 . | . . Level 3 . | . . Level 4 . | . . Level 5 . | . . High Security . | . . Max Security . | . . Squads Dispatched 4 | . 4 Investigation 4 | . 4 Extermination . | . . Reinforcement . | . . Assault . | . . Garrison . | . . Intercept . | . . Searches Triggered . | . . Construction Impeded . | . . Haulers Reinforced . | . . Active Scanning Responses . | . . Cargo Convoy Interrupts . | . . Stealth | -11 -10 --------- Run | Scr Mat Distress Signals 1 | . 1 Communications Jammed . | . . Distress Signals . | . . Times Spotted 27 | . 27 Peak Tracking Total 5 | . 5 Tactical Retreats 1 | . 1 Traps | -11 -10 ------- Run | Scr Mat Traps Triggered 2 | . 2 Indirectly . | . . Trap Hack Attempts . | . . Triggered . | . . Disarmed . | . . Reprogrammed . | . . Reused . | . . Traps Extracted . | . . Installed . | . . Triggered . | . . Machines | -11 -10 ---------- Run | Scr Mat Machines Disabled . | . . Max in Single Turn . | . . Machines Sabotaged . | . . Garrisons Compromised . | . . Overloaded Fab Kills . | . . Hacking | -11 -10 --------- Run | Scr Mat Machines Accessed 8 | . 8 Terminals 7 | . 7 Fabricators . | . . Repair Stations . | . . Recycling Units 1 | . 1 Scanalyzers . | . . Garrison Access . | . . Total Hacks 37 | . 37 Successful 17 | . 17 Failed 19 | . 19 Catastrophic 2 | . 2 Database Lockouts 1 | . 1 Manual 31 | . 31 Terminals 31 | . 31 Fabricators . | . . Repair Stations . | . . Recycling Units 6 | . 6 Scanalyzers . | . . Garrison Access . | . . Terminal Hacks 8 | . 8 Robot Analysis 4 | . 4 Branch Access Points 1 | . 1 Terminal Index 1 | . 1 Recall Investigation 1 | . 1 Zone Layout 1 | . 1 Fabricator Hacks . | . . Repair Station Hacks . | . . Recycling Unit Hacks 1 | . 1 Retrieve Components 1 | . 1 Scanalyzer . | . . Garrison Access Hacks . | . . Unauthorized Hacks 8 | . 8 Terminals 7 | . 7 Botnet 6 | . 6 Operators 1 | . 1 Fabricators . | . . Repair Stations . | . . Recycling Units 1 | . 1 Tunnel 1 | . 1 Scanalyzers . | . . Garrison Access . | . . Data Cores Recovered . | . . Used . | . . Hacking Detections 8 | . 8 Full Trace Events 4 | . 4 Feedback Events . | . . Feedback Blocked . | . . Robot Schematics Acquired . | . . Robots Built . | . . Authchips . | . . Time . | . . Total Robot Build Rating . | . . Part Schematics Acquired . | . . Parts Built . | . . Authchips . | . . Time . | . . Total Part Build Rating . | . . Parts Repaired . | . . Time . | . . Parts Recycled . | . . Recycled Matter . | . . Retrieved Matter . | . . Retrieved Components 3 | . 3 Parts Scanalyzed . | . . Part Schematics Acquired . | . . Parts Damaged . | . . Bothacking | -11 -10 ------------ Run | Scr Mat Used RIF Installer . | . . Robots Hacked . | . . Non-combat . | . . Combat . | . . Robot Hacks Applied . | . . Relay Couplers Released . | . . Fabnet Peak Effective % . | . . Robots Rewired . | . . Allies Hacked . | . . Hacks Repelled . | . . Allies | -11 -10 -------- Run | Scr Mat Total Allies . | . . Largest Group . | . . Highest-Rated Group . | . . Highest-Rated Ally . | . . Total Orders . | . . Ally Attacks . | . . Total Damage . | . . Kills . | . . Allies Corrupted . | . . Allies Melted . | . . Intel | -11 -10 ------- Run | Scr Mat Robot Analysis Total 4 | . 4 Derelict Logs Recovered . | . . Drone Launches . | . . Drone Recoveries . | . . Exploration | -11 -10 ------------- Run | Scr Mat Turns Passed 992 | 85 907 Spaces Moved 573 | 47 526 Core 37 | 37 . Treads . | . . Legs . | . . Wheels 536 | 10 526 Hover . | . . Flight . | . . Fastest Speed 50 | 50 80 Average Speed 117 | 56 122 Slowest Speed 200 | 80 200 Overloaded Moves . | . . Propulsion Burnouts . | . . Robots Hopped . | . . Cave-ins Triggered . | . . Exploration Rate (%) 45 | 3 87 Regions Visited 1 Branch Regions . Pre-discovered Areas 1 | . 1 Known Exits Taken . | . . Unknown Exits Taken 1 | 1 . Scrap Searched . | . . Spaces Dug . | . . Terrain Destroyed 10 | . 10 Melee . | . . Projectile . | . . AOE 10 | . 10 Terrain Rammed . | . . Walls Destroyed . | . . Machines Disabled . | . . Actions | -11 -10 --------- Run | Scr Mat Total 770 | 84 686 Wait 55 | 4 51 Move 572 | 46 526 Hop . | . . Pick Up 20 | 11 9 Fast Attach 7 | 3 4 Attach 12 | 4 8 Detach 4 | . 4 Swap 4 | . 4 Drop 5 | 4 1 Fire 90 | 12 78 Melee . | . . Ram 1 | . 1 Kick . | . . Crush . | . . Escape Stasis . | . . Rewire . | . . Trap . | . . Miscellaneous . | . . Route ------- -11/Scrapyard -10/Materials (discovered 4 exits: [*Mat x2] / *Min x2) History --------- Turn | Location | Event 16 | -11/Scrapyard | Discovered new exit (range 15) 86 | -11/Scrapyard | Entered Materials 320 | -10/Materials | Build established: Mutant 371 | -10/Materials | Discovered new exit (range 9) 500 | -10/Materials | Central database locked down 596 | -10/Materials | Discovered new exit (range 16) 738 | -10/Materials | Discovered new exit (range 12) 745 | -10/Materials | Core integrity fell below 50% 878 | -10/Materials | Core integrity fell below 20% 896 | -10/Materials | Lost 3 parts (1p1n1w) 950 | -10/Materials | Discovered new exit (range 4) 979 | -10/Materials | Identified exit to Mines 993 | -10/Materials | Destroyed by G-34 Mercenary with Small Laser Last Messages --------------- 00889_ Acquired 15 matter. 00897_ Acquired Lgt. Nuclear Core. 00912_ Acquired 10 matter. 00950_ EXIT=FOUND 00961_ Triggered EMP Trap. 00961_ A bubble of electromagnetic force engulfs the area. 00979_ Connecting with Terminal... >>Trojan(Botnet) Trojan loaded successfully. Testing... Terminal linked with 5 systems. Awaiting botnet instructions. >>Access(Branch) Found 2 branch access points: (37,38) Mines (48,38) Mines Map updated. 00979_ ALERT: Suspicious activity at Terminal M001. Dispatching Investigation squad. 00992_ O-16 Technician: "IFF HANDSHAKE FAILED. SECURING TERMINAL." Map ----- +----------------------------------------------------+ | ???????????????????????????????????? | | ???????????????????????????????????? | | ##########?????????????????????????? | | #?????????????????????????? | | #?????????????????????????? | | #?????????????????????????? | | #?????????????????????????? | | ! #?????????????????????????? | | #?????????????????????????? | | ??????????????????????????? | | ?? ????????????????????????????? | | ####+############??????????????????? | | ! + | #????????????? ???? | | !! # #???????????## ????? | | !! # #??????????? ????? | | + #??????????? ?????? | | # #?????????? ?????? | | """ # """ """ #?????????? #?????? | | """ # """ """ #?????????? #?????? | | """ # """ """ ??????????? #?????? | | #########??????????? #?????? | | #######????????????? #?????? | | ####### #????????????? #?????? | | # ############## #?????? | | "# """ # """ #?????? | | """ T# """ # "T" @ #?????? | | """ "# """ + #?????? | | """ # # """ #?????? | | ###+### g """ #?????? | | ## """ #?????? | | ######## #?????? | | ###????# #?????? | | ""#????# ############### #?????? | | " #???## ##????????????? #?????? | | ##### ######???????? #?????? | | ##???????o #?????? | | > +??????? #?????? | | ##??????? #?????? | | ##### #### #????????r +?????? | | ###??####+#####??#???????? #?????? | | ?????# #???????????? ??????? | | ?????# """#????????????????????? | | ###### """#????????????????????? | | # """#????????????????????? | | # #????????????????????? | | # """#????????????????????? | | # """#????????????????????? | | == =# """#????????????????????? | | == # #????????????????????? | | = ###+######????????????????????? | +----------------------------------------------------+ Best States ------------- Heat Dissipation 25 Energy Generation 14 Energy Capacity 250 Matter Stores 300 Matter Capacity 300 Sight Range 16 Terrain Scan Density 10 Evasion (%) 50 Targeting Accuracy 5 Item Schematics ----------------- None Robot Schematics ------------------ None Fabricated ------------ Nothing Alien Tech Used ----------------- None Achievements -------------- None Challenges ------------ None Game ------ Seed RecoilGrenadeRedistributor Manual? 0 Play Time 00:17:05 Cumulative 643.1 hours Start 2022.06.24 @ 15:24:26 End 2022.06.24 @ 15:33:46 Sessions 1 Manual Loads 0 Difficulty Rogue Special Mode None Game No. 521 Rogue 521 Adventurer 0 Explorer 0 Win Type - Total 8 Types 7/0/0/1/0/0/0/0/0 Lore% 75 Gallery% 86 Achievement% 69 Wizard Run 0 Options --------- ASCII 0 Keyboard 1 Movement Numpad Keybinds 0 Fullscreen 1 Font 12/Terminus Map View 83x54 Tactical HUD 1 Map Filters NONE Filters NONE Steam 1 RUN: 2ac48e35-3af7-437a-84f7-6113b082508c